bitfinex-derivatives/quotes_SOLF0:USTF0_20250509
["timestamp","ask_amount","ask_price","bid_price","bid_amount"]
[1746797597174,42.14,171.56,171.44,1.918]
[1746797597366,5.8306,171.54,171.44,1.918]
[1746797597568,42.14,171.56,171.44,63.918]
[1746797597870,47.9697,171.56,171.44,63.918]
[1746797598069,42.14,171.56,171.44,63.918]
[1746797598268,42.14,171.56,171.51,5.8311]
[1746797598469,399.22,171.61,171.47,42.22]
[1746797598773,359.09949205,171.7,171.59,5.8286]
[1746797598969,5.8277,171.62,171.48,1.9909]
[1746797599173,42.22,171.64,171.48,1.9909]
[1746797599369,5.8282,171.61,171.48,1.9909]
[1746797599573,42.22,171.64,171.48,1.9909]
[1746797599770,42.22,171.64,171.56,5.8294]
[1746797600071,5.828,171.62,171.56,5.8294]
[1746797600272,42.22,171.64,171.52,5.8308]
[1746797600963,42.22,171.64,171.51,5.8313]
[1746797601369,42.22,171.64,171.48,1.9909]
[1746797601668,357.0,171.63,171.48,1.9909]
[1746797602068,5.8285,171.6,171.55,5.8299]
[1746797602471,42.22,171.64,171.48,1.9909]
[1746797603069,5.8281,171.61,171.56,5.8297]
[1746797603373,42.22,171.64,171.48,1.9909]
[1746797603568,5.8287,171.6,171.56,5.8296]
[1746797603774,42.22,171.64,171.48,1.9909]
[1746797603981,386.70056837,171.63,171.43,1.0]
[1746797604273,28.63720443,171.58,171.43,6.8341]
[1746797604475,399.8424,171.57,171.43,6.8341]
[1746797604768,5.8323,171.49,171.44,5.8338]
[1746797604970,41.88,171.51,171.43,1.0]
[1746797605170,358.0824,171.57,171.43,1.0]
[1746797605371,41.84,171.56,171.44,5.6203]
[1746797605572,41.8,171.57,171.44,5.6203]
[1746797607173,41.72,171.57,171.44,5.6203]
[1746797607972,41.64,171.6,171.44,5.6203]
[1746797608178,1.06336394,171.63,171.46,28.63720443]
[1746797608477,1.06336394,171.63,171.47,41.66]
[1746797608778,1.06336394,171.63,171.48,62.0]
[1746797609371,1.06336394,171.63,171.47,41.66]
[1746797609780,357.0,171.62,171.47,41.66]
[1746797609973,5.8305,171.54,171.44,5.6203]
[1746797610277,41.48,171.57,171.44,5.6203]
[1746797610978,41.48,171.57,171.46,5.833]
[1746797611173,41.48,171.57,171.44,5.6203]
[1746797611476,41.48,171.57,171.48,5.8323]
[1746797611677,41.48,171.57,171.44,5.6203]
[1746797612679,41.48,171.57,171.45,5.8334]
[1746797613481,357.0,171.62,171.44,5.6203]
[1746797613780,41.16,171.61,171.44,5.6203]
[1746797614396,5.8321,171.49,171.45,5.8334]
[1746797614580,41.12,171.54,171.44,5.6203]
[1746797614880,5.832,171.5,171.44,5.6203]
[1746797615376,5.832,171.5,171.46,5.8329]
[1746797615581,5.8315,171.51,171.44,5.6203]
[1746797615985,357.0,171.62,171.44,33.37551391]
[1746797616187,1.06336394,171.63,171.48,27.75521391]
[1746797616378,1.06336394,171.63,171.49,40.98]
[1746797617083,1.06336394,171.63,171.55,5.8297]
[1746797617276,5.8286,171.6,171.49,40.98]
[1746797617476,1.06336394,171.63,171.49,40.98]
[1746797617776,5.8279,171.62,171.49,40.98]
[1746797617973,1.06336394,171.63,171.49,40.98]
[1746797618681,1.06336394,171.63,171.5,11.6634]
[1746797619084,1.06336394,171.63,171.62,5.8277]
[1746797619480,5.8257,171.68,171.57,1.9205]
[1746797619782,40.76,171.71,171.57,3.7472]
[1746797620081,1.07093128,171.74,171.57,3.7472]
[1746797620479,5.8253,171.69,171.57,3.7472]
[1746797620783,1.07093128,171.74,171.57,3.7472]
[1746797621384,1.07093128,171.74,171.66,5.826]
[1746797621586,5.8249,171.71,171.62,40.62]
[1746797621788,1.07093128,171.74,171.63,1.8641]
[1746797622180,6.8950982,171.73,171.63,1.8641]
[1746797622387,1.0710982,171.73,171.63,1.8641]
[1746797623081,1.0710982,171.73,171.64,62.0]
[1746797623785,1.0710982,171.73,171.72,5.8243]
[1746797623980,1.07093128,171.74,171.72,5.8243]
[1746797624188,1.07073616,171.76,171.69,40.38]
[1746797624392,1.07073616,171.76,171.72,5.824]
[1746797624586,1.07073616,171.76,171.7,1.8759]
[1746797624986,1.07073616,171.76,171.72,5.8241]
[1746797625192,1.07073616,171.76,171.7,1.8759]
[1746797626091,1.07073616,171.76,171.71,1.9657]
[1746797628987,1.07073616,171.76,171.7,1.8759]
[1746797629393,1.07073616,171.76,171.72,5.824]
[1746797629691,1.07073616,171.76,171.7,1.8759]
[1746797629893,1.07073616,171.76,171.73,5.8237]
[1746797630292,1.07073616,171.76,171.7,1.8759]
[1746797630590,5.8235,171.75,171.71,5.8243]
[1746797630888,1.07073616,171.76,171.7,1.8759]
[1746797631092,5.8246,171.72,171.68,5.8256]
[1746797631294,1.07073616,171.76,171.65,3.8295]
[1746797631694,2.87613616,171.76,171.65,1.9959]
[1746797631892,2.87613616,171.76,171.56,463.2]
[1746797632097,358.0784,171.75,171.59,39.6]
[1746797632397,357.0,171.74,171.59,39.6]
[1746797633298,357.0,171.73,171.59,39.6]
[1746797634597,5.8253,171.69,171.63,5.8272]
[1746797635001,39.4,171.71,171.59,39.6]
[1746797635797,1.07073616,171.76,171.6,11.6566]
[1746797635997,6.89363616,171.76,171.72,5.8242]
[1746797636191,1.07073616,171.76,171.65,39.48]
[1746797636900,1.07073616,171.76,171.66,3.7938]
[1746797637095,1.07073616,171.76,171.72,5.8243]
[1746797637293,1.07073616,171.76,171.67,1.8502]
[1746797637801,6.89383616,171.76,171.71,5.8246]
[1746797638099,1.07073616,171.76,171.71,5.8246]
[1746797638604,1.07073616,171.76,171.7,5.8248]
[1746797638799,1.07073616,171.76,171.67,1.8502]
[1746797639104,6.89383616,171.76,171.72,5.8241]
[1746797639306,1.07073616,171.76,171.67,1.8502]
[1746797640807,1.07073616,171.76,171.75,5.8232]
[1746797641004,3.0364,171.89,171.72,39.4]
[1746797641201,39.4,171.88,171.72,39.4]
[1746797641803,5.821,171.82,171.72,39.4]
[1746797642001,39.4,171.88,171.72,39.4]
[1746797642309,5.8209,171.83,171.79,5.8218]
[1746797642498,39.4,171.88,171.79,5.8218]
[1746797642806,5.8206,171.83,171.79,5.8218]
[1746797643004,1.956,171.89,171.78,39.3]
[1746797643305,500.64,171.91,171.79,3.6883]
[1746797643910,500.64,171.91,171.82,5.8208]
[1746797644308,500.64,171.91,171.79,3.6883]
[1746797644708,1.9031,171.93,171.79,3.6883]
[1746797644912,1.9031,171.93,171.8,1.8674]
[1746797645201,5.8182,171.9,171.8,1.8674]
[1746797646112,360.0126,171.98,171.8,1.8674]
[1746797646316,398.9726,171.98,171.8,1.8674]
[1746797646905,5.8173,171.93,171.8,1.8674]
[1746797647106,398.9726,171.98,171.82,27.67590301]
[1746797647509,398.9726,171.98,171.87,5.8192]
[1746797647714,398.9726,171.98,171.8,1.8674]
[1746797648023,5.8182,171.9,171.86,5.8194]
[1746797648313,398.9726,171.98,171.84,38.8]
[1746797648916,398.9726,171.98,171.81,38.82]
[1746797649114,5.8172,171.93,171.89,5.8182]
[1746797649311,398.9726,171.98,171.81,38.82]
[1746797649512,397.8929,171.98,171.81,38.82]
[1746797649713,397.8929,171.98,171.81,66.49590301]
[1746797649913,397.6529,171.98,171.81,66.49590301]
[1746797650218,5.8172,171.93,171.9,5.8181]
[1746797650422,397.6529,171.98,171.9,5.8181]
[1746797650816,5.8172,171.93,171.9,5.8181]
[1746797651017,5.8172,171.93,171.89,5.8184]
[1746797651315,397.6529,171.98,171.81,66.49590301]
[1746797651516,397.6529,171.98,171.86,5.8192]
[1746797651719,397.6529,171.98,171.8,1.8674]
[1746797652012,397.6529,171.98,171.85,5.8195]
[1746797652013,1.074,171.97,171.85,5.8195]
[1746797652317,1.074,171.97,171.81,38.58]
[1746797652516,1.074,171.97,171.81,66.25590301]
[1746797652915,5.8176,171.92,171.81,66.25590301]
[1746797653116,1.074,171.97,171.81,66.25590301]
[1746797653414,397.6529,171.98,171.81,66.25590301]
[1746797653615,461.26,172.01,171.81,66.25590301]
[1746797653815,38.42,172.0,171.85,27.67590301]
[1746797654212,38.42,172.0,171.93,5.8171]
[1746797654406,5.816,171.97,171.93,5.8171]
[1746797655014,5.816,171.97,171.94,5.8167]
[1746797655516,5.816,171.97,171.93,5.817]
[1746797655708,499.6,172.01,171.89,38.34]
[1746797655919,38.34,172.01,171.89,38.34]
[1746797656115,5.8156,171.98,171.94,5.8167]
[1746797656322,357.0,172.03,171.9,5.8745]
[1746797656510,1.8487,172.07,171.9,5.8745]
[1746797656715,1.8487,172.07,171.93,27.67590301]
[1746797657217,358.0717,172.12,171.97,27.67590301]
[1746797657411,2.84928092,172.15,171.98,39.9882]
[1746797657615,2.84928092,172.15,172.06,5.8125]
[1746797657616,5.8115,172.1,172.06,5.8125]
[1746797657915,2.84928092,172.15,171.99,1.8739]
[1746797658521,30.52518393,172.15,172.0,40.083]
[1746797658716,5.813,172.06,172.02,5.814]
[1746797658916,38.1,172.1,171.99,1.8739]
[1746797659122,38.1,172.1,171.98,1.8482]
[1746797659626,38.06,172.12,171.98,63.8482]
[1746797659927,38.06,172.12,171.99,1.8739]
[1746797660728,1.8373,172.15,171.99,1.8739]
[1746797661028,5.8119,172.09,171.99,29.54980301]
[1746797661232,1.8373,172.15,171.99,29.54980301]
[1746797661521,5.8097,172.16,172.11,5.8108]
[1746797661722,1.0717,172.18,172.07,38.18]
[1746797661917,38.18,172.2,172.07,38.18]
[1746797662120,358.9655,172.24,172.11,27.67590301]
[1746797662316,38.16,172.31,172.12,3.8692]
[1746797662519,38.16,172.31,172.13,38.16]
[1746797662722,1.9655,172.3,172.13,38.16]
[1746797663326,27.67590301,172.28,172.13,38.16]
[1746797663558,5.8083,172.2,172.14,5.81]
[1746797663731,38.04,172.24,172.13,38.16]
[1746797664029,5.8086,172.19,172.14,5.8099]
[1746797664226,5.8086,172.19,172.13,38.16]
[1746797664527,38.04,172.24,172.12,3.8692]
[1746797664730,38.04,172.24,172.12,9.6799]
[1746797665228,38.04,172.24,172.13,5.8103]
[1746797665429,38.04,172.24,172.12,3.8692]
[1746797666132,27.67590301,172.28,172.12,3.8692]
[1746797666324,5.8089,172.18,172.12,3.8692]
[1746797666525,37.98,172.26,172.12,3.8692]
[1746797667029,357.0,172.27,172.19,5.8083]
[1746797667233,38.14,172.29,172.13,27.67590301]
[1746797667620,40.1255,172.3,172.13,27.67590301]
[1746797668525,40.1255,172.3,172.13,89.67590301]
[1746797668726,1.9655,172.3,172.21,5.8074]
[1746797668931,1.9655,172.3,172.18,38.0]
[1746797668932,39.9655,172.3,172.18,38.0]
[1746797669128,5.806,172.27,172.18,38.0]
[1746797669328,39.9055,172.3,172.18,38.0]
[1746797669830,357.0,172.33,172.18,38.0]
[1746797670026,38.16,172.39,172.21,27.67590301]
[1746797670231,38.16,172.39,172.22,462.1071]
[1746797670429,38.16,172.39,172.22,464.011]
[1746797670930,5.8029,172.36,172.31,5.8042]
[1746797671130,38.08,172.39,172.26,38.08]
[1746797671331,5.803,172.35,172.31,5.8043]
[1746797671640,38.06,172.39,172.26,38.08]
[1746797671832,357.0,172.43,172.36,5.8025]
[1746797672036,27.67590301,172.49,172.33,38.06]
[1746797672227,38.02,172.5,172.33,38.06]
[1746797672427,5.7996,172.45,172.4,5.8013]
[1746797672628,38.02,172.5,172.34,1.8671]
[1746797673025,357.0,172.49,172.33,460.08]
[1746797673232,27.67590301,172.46,172.3,3.7535]
[1746797673934,27.67590301,172.46,172.27,1.8393]
[1746797674132,357.0,172.45,172.27,1.8393]
[1746797674435,27.67590301,172.42,172.27,1.8393]
[1746797674628,1.9687,172.41,172.27,1.8393]
[1746797674830,1.9687,172.41,172.25,31.47810301]
[1746797674831,3.0334,172.41,172.25,3.8022]
[1746797675030,5.8036,172.34,172.25,3.8022]
[1746797675230,1.9687,172.42,172.25,31.47810301]
[1746797675626,1.9687,172.42,172.29,27.67590301]
[1746797675826,1.9687,172.42,172.3,39.8832]
[1746797676038,5.8017,172.39,172.34,5.8031]
[1746797676230,1.9687,172.42,172.3,39.8832]
[1746797676937,29.64460301,172.42,172.3,38.04]
[1746797677144,386.64460301,172.42,172.25,3.8022]
[1746797677336,27.67590301,172.38,172.25,41.7222]
[1746797677529,37.92,172.37,172.25,41.7222]
[1746797677835,27.67590301,172.34,172.2,37.88]
[1746797678231,357.0,172.33,172.2,37.88]
[1746797678635,1.8658,172.32,172.19,1.8462]
[1746797678831,37.82,172.31,172.19,1.8462]
[1746797679839,5.8053,172.28,172.24,5.8064]
[1746797680140,37.82,172.31,172.19,1.8462]
[1746797680338,1.8658,172.32,172.19,1.8462]
[1746797680535,362.8037,172.33,172.19,1.8462]
[1746797680839,357.0,172.33,172.19,1.8462]
[1746797681434,5.8042,172.32,172.27,5.8054]
[1746797681637,357.0,172.33,172.23,37.82]
[1746797682047,5.8044,172.31,172.23,37.82]
[1746797682229,357.0,172.33,172.19,1.8462]
[1746797682433,357.0,172.33,172.19,39.6062]
[1746797682633,27.67590301,172.32,172.19,1.8462]
[1746797682834,67.32250301,172.32,172.19,1.8462]
[1746797683037,39.6466,172.32,172.19,1.8462]
[1746797683238,45.4507,172.32,172.23,5.807]
[1746797683541,39.6466,172.32,172.19,1.8462]
[1746797683839,5.8049,172.3,172.22,5.8073]
[1746797684041,39.6466,172.32,172.22,5.8073]
[1746797684243,39.6466,172.32,172.19,1.8462]
[1746797684432,1.9266,172.32,172.19,1.8462]
[1746797685140,37.56,172.36,172.2,27.67590301]
[1746797685440,5.8036,172.34,172.24,27.67590301]
[1746797685639,39.483,172.4,172.25,39.373]
[1746797686640,5.8037,172.33,172.28,5.805]
[1746797687029,5.8037,172.33,172.25,39.373]
[1746797687030,37.48,172.39,172.26,1.9334]
[1746797687344,28.73710301,172.37,172.2,65.27590301]
[1746797687539,357.0,172.36,172.2,37.6]
[1746797687738,27.67590301,172.33,172.18,3.6969]
[1746797687934,37.62,172.32,172.18,3.6969]
[1746797688347,5.8069,172.24,172.2,5.8078]
[1746797688541,1.849,172.31,172.18,3.6969]
[1746797689042,11.6026,172.4,172.18,31.37280301]
[1746797689244,37.6,172.39,172.22,27.67590301]
[1746797689547,5.8058,172.27,172.22,43.4073]
[1746797689738,37.58,172.33,172.22,43.4073]
[1746797690047,37.6,172.33,172.18,41.2969]
[1746797690248,5.8056,172.28,172.18,41.2969]
[1746797690444,37.6,172.33,172.18,41.2969]
[1746797690647,5.8063,172.26,172.18,41.2969]
[1746797690836,2.9156,172.32,172.18,41.2969]
[1746797691249,2.9156,172.32,172.22,5.8073]
[1746797691445,2.9156,172.32,172.18,41.2969]
[1746797692251,37.74,172.34,172.18,41.2969]
[1746797692442,5.8037,172.33,172.22,27.67590301]
[1746797692643,37.74,172.34,172.23,1.9744]
[1746797692947,5.8042,172.32,172.28,5.8051]
[1746797693144,37.74,172.34,172.23,1.9744]
[1746797693343,357.0,172.37,172.23,1.9744]
[1746797693648,40.8231,172.38,172.26,27.67590301]
[1746797693958,40.8231,172.38,172.23,1.9744]
[1746797694144,5.8047,172.3,172.23,1.9744]
[1746797694345,41.22,172.32,172.23,1.9744]
[1746797695143,41.22,172.32,172.19,41.22]
[1746797696354,68.89590301,172.32,172.17,1.8232]
[1746797696860,68.89590301,172.32,172.2,5.8078]
[1746797697067,68.89590301,172.32,172.17,1.8232]
[1746797697246,5.8054,172.28,172.24,5.8066]
[1746797697442,68.89590301,172.32,172.17,1.8232]
[1746797697951,5.8056,172.28,172.23,5.8069]
[1746797698145,68.89590301,172.32,172.17,1.8232]
[1746797698540,5.806,172.27,172.22,5.8071]
[1746797698747,68.89590301,172.32,172.17,1.8232]
[1746797698947,5.8066,172.25,172.2,5.808]
[1746797699149,357.0,172.37,172.17,1.8232]
[1746797699444,5.8037,172.33,172.27,5.8053]
[1746797699649,398.24,172.36,172.21,41.22]
[1746797700050,5.8043,172.32,172.21,41.22]
[1746797700250,398.24,172.36,172.21,41.22]
[1746797700650,5.804,172.33,172.21,41.22]
[1746797700846,357.0,172.36,172.21,41.22]
[1746797701044,398.16,172.36,172.22,3.8552]
[1746797701244,398.16,172.36,172.3,5.8044]
[1746797701245,5.8033,172.35,172.3,5.8044]
[1746797701448,5.8033,172.35,172.22,31.53110301]
[1746797701650,41.16,172.36,172.22,31.53110301]
[1746797701954,357.0,172.41,172.26,27.67590301]
[1746797702150,41.08,172.41,172.27,42.9794]
[1746797702348,459.92,172.42,172.3,27.67590301]
[1746797702549,459.92,172.42,172.31,3.8552]
[1746797703151,459.78,172.5,172.34,27.67590301]
[1746797703353,41.0,172.49,172.35,41.0]
[1746797703551,459.78,172.5,172.35,41.0]
[1746797704152,500.74,172.5,172.36,1.8994]
[1746797704752,459.78,172.5,172.36,1.8994]
[1746797705052,500.68,172.5,172.38,27.67590301]
[1746797705246,459.78,172.5,172.39,1.8699]
[1746797705454,5.7983,172.49,172.44,5.7997]
[1746797705950,5.7983,172.49,172.45,5.7996]
[1746797706150,1.8542,172.52,172.41,40.84]
[1746797706653,1.0656,172.58,172.42,27.67590301]
[1746797707051,41.8256,172.58,172.42,27.67590301]
[1746797707262,40.76,172.58,172.42,27.67590301]
[1746797707455,27.67590301,172.59,172.42,27.67590301]
[1746797707659,40.8,172.58,172.42,27.67590301]
[1746797707953,40.8,172.58,172.44,5.7996]
[1746797708152,40.8,172.58,172.4,1.9894]
[1746797708449,27.67590301,172.55,172.4,7.7906]
[1746797708755,357.0,172.54,172.4,1.9894]
[1746797709053,357.0,172.54,172.44,5.7996]
[1746797709451,27.67590301,172.51,172.4,1.9894]
[1746797709658,44.0998,172.5,172.36,1.8994]
[1746797710046,27.67590301,172.47,172.3,3.7084]
[1746797710248,27.67590301,172.44,172.3,5.5946]
[1746797710453,41.08,172.43,172.3,5.5946]
[1746797711059,41.08,172.43,172.33,5.8036]
[1746797711246,41.08,172.43,172.3,5.5946]
[1746797711451,27.67590301,172.44,172.3,5.5946]
[1746797711452,40.96,172.42,172.3,5.5946]
[1746797711663,40.96,172.42,172.36,5.8024]
[1746797711956,40.96,172.42,172.3,5.5946]
[1746797712854,5.8012,172.41,172.3,5.5946]
[1746797713057,40.8,172.44,172.3,5.5946]
[1746797713256,40.8,172.44,172.31,5.804]
[1746797713456,40.8,172.44,172.3,5.5946]
[1746797713656,40.84,172.43,172.3,5.5946]
[1746797713855,40.84,172.43,172.32,5.804]
[1746797714059,357.0,172.48,172.3,5.5946]
[1746797714355,397.78,172.47,172.32,27.67590301]
[1746797714561,5.8012,172.41,172.33,5.8033]
[1746797714764,27.67590301,172.46,172.3,5.5946]
[1746797715358,27.67590301,172.46,172.3,3.7408]
[1746797715764,5.803,172.35,172.3,3.7408]
[1746797716155,40.74,172.4,172.3,1.8862]
[1746797716365,40.74,172.4,172.25,40.78]
[1746797716570,2.9562,172.39,172.25,40.78]
[1746797716768,27.67590301,172.38,172.25,40.78]
[1746797716968,5.8058,172.27,172.25,40.78]
[1746797717167,40.8,172.34,172.22,7.6056]
[1746797717371,40.8,172.34,172.22,1.7984]
[1746797717669,40.8,172.34,172.22,7.6055]
[1746797717868,40.8,172.34,172.22,1.7984]
[1746797718471,5.8058,172.27,172.22,1.7984]
[1746797718874,40.8,172.34,172.2,46.6077]
[1746797718875,5.8063,172.26,172.2,46.6077]
[1746797719174,68.47590301,172.34,172.2,40.8]
[1746797719367,5.8065,172.25,172.2,46.6078]
[1746797719568,40.56,172.28,172.13,459.56]
[1746797719863,40.56,172.28,172.11,40.56]
[1746797719864,5.8083,172.2,172.11,40.56]
[1746797720262,2.9659,172.27,172.11,40.56]
[1746797720870,5.8083,172.2,172.14,5.8098]
[1746797721075,40.5,172.22,172.11,40.56]
[1746797721372,40.5,172.22,172.09,5.52]
[1746797721573,5.8086,172.19,172.14,5.81]
[1746797721772,40.5,172.22,172.09,5.52]
[1746797722118,5.8084,172.19,172.09,5.52]
[1746797722271,40.5,172.22,172.11,1.0]
[1746797722475,68.17590301,172.22,172.11,1.0]
[1746797722673,5.81,172.15,172.11,1.0]
[1746797722873,40.5,172.16,172.11,1.0]
[1746797723668,40.46,172.2,172.16,5.8092]
[1746797723972,40.48,172.21,172.11,1.0]
[1746797724193,40.48,172.21,172.17,5.809]
[1746797724373,40.48,172.21,172.11,1.0]
[1746797724574,40.48,172.21,172.12,3.7497]
[1746797724776,40.48,172.21,172.2,5.808]
[1746797724973,40.38,172.25,172.12,3.7497]
[1746797725170,40.38,172.25,172.13,1.7994]
[1746797725378,40.38,172.25,172.12,3.7497]
[1746797725775,5.808,172.2,172.15,5.8094]
[1746797726075,5.808,172.2,172.12,3.7497]
[1746797726270,5.808,172.21,172.15,5.8096]
[1746797726464,487.31590301,172.26,172.12,3.7497]
[1746797726666,459.64,172.26,172.12,3.7497]
[1746797726967,459.64,172.26,172.15,27.67590301]
[1746797727174,40.4,172.28,172.16,42.2017]
[1746797727378,5.8063,172.26,172.21,5.8076]
[1746797727579,40.4,172.28,172.21,5.8076]
[1746797727872,5.806,172.26,172.21,5.8074]
[1746797728077,40.4,172.28,172.16,42.2017]
[1746797729177,384.67590301,172.27,172.12,3.7497]
[1746797729384,357.0,172.26,172.12,3.7497]
[1746797729580,5.8084,172.19,172.15,5.8097]
[1746797729778,5.8084,172.19,172.12,3.7497]
[1746797729973,357.0,172.26,172.12,3.7497]
[1746797730174,5.809,172.18,172.13,5.8103]
[1746797730473,397.32,172.25,172.12,1.8396]
[1746797730680,5.8094,172.16,172.12,5.8107]
[1746797731073,40.2,172.19,172.11,1.0]
[1746797731579,43.2141,172.24,172.11,1.0]
[1746797732177,70.89000301,172.24,172.11,1.0]
[1746797732473,5.8093,172.17,172.12,5.8104]
[1746797732880,70.89000301,172.24,172.11,1.0]
[1746797733077,816.94,172.23,172.11,1.0]
[1746797733478,27.67590301,172.2,172.11,1.0]
[1746797733680,5.8101,172.14,172.11,1.0]
[1746797733984,357.0,172.19,172.11,1.0]
[1746797734184,5.8097,172.16,172.12,5.8105]
[1746797734385,357.0,172.19,172.11,1.0]
[1746797734877,357.0,172.19,172.15,5.8097]
[1746797735073,357.0,172.19,172.11,1.0]
[1746797735981,459.94,172.23,172.11,28.67590301]
[1746797736280,357.0,172.29,172.11,28.67590301]
[1746797736586,1.9336,172.32,172.15,27.67590301]
[1746797736784,1.9336,172.32,172.16,44.016]
[1746797737681,27.67590301,172.29,172.16,1.9965]
[1746797737979,27.67590301,172.29,172.12,40.06]
[1746797738580,27.67590301,172.29,172.14,5.81]
[1746797738880,27.67590301,172.29,172.12,40.06]
[1746797739081,5.8078,172.21,172.13,5.8103]
[1746797739281,27.67590301,172.29,172.12,40.06]
[1746797739282,40.0,172.24,172.12,40.06]
[1746797739605,5.8088,172.18,172.12,40.06]
[1746797739887,39.96,172.18,172.11,1.0]
[1746797740186,5.8116,172.1,172.02,3.753]
[1746797740385,384.67590301,172.17,172.02,3.753]
[1746797740581,357.0,172.16,172.02,3.753]
[1746797741487,357.0,172.15,172.02,1.8689]
[1746797741784,357.0,172.15,172.0,1.91]
[1746797741990,358.0717,172.14,171.98,463.7231]
[1746797742187,27.67590301,172.13,171.98,463.7231]
[1746797742389,499.92,172.12,171.96,39.86]
[1746797742588,357.0,172.11,171.96,39.86]
[1746797742785,357.0,172.11,171.96,45.676]
[1746797743086,357.0,172.11,171.96,39.86]
[1746797743282,5.8132,172.05,171.96,39.86]
[1746797743486,357.0,172.11,171.98,5.8154]
[1746797743688,357.0,172.11,171.96,39.86]
[1746797743886,5.8133,172.05,171.96,39.86]
[1746797744190,357.0,172.11,171.96,39.86]
[1746797744388,39.8,172.1,171.99,5.8149]
[1746797744587,39.8,172.1,171.96,39.86]
[1746797744885,5.8128,172.06,172.0,5.8147]
[1746797745087,39.8,172.1,171.96,39.86]
[1746797745592,384.67590301,172.09,171.94,1.8469]
[1746797745780,385.81580301,172.09,171.94,1.8469]
[1746797745986,5.8141,172.02,171.96,5.8161]
[1746797746483,39.58,172.04,171.94,1.8469]
[1746797746683,45.3937,172.04,171.94,1.8469]
[1746797747077,39.58,172.04,171.94,1.8469]
[1746797747307,39.46,172.08,171.94,1.8469]
[1746797747492,39.44,172.08,171.94,1.8469]
[1746797747981,358.1399,172.09,171.94,1.8469]
[1746797748188,460.06,172.12,171.97,27.67590301]
[1746797748486,40.4517,172.14,172.01,27.67590301]
[1746797748689,1.0717,172.14,172.02,3.8544]
[1746797749989,5.8111,172.11,172.06,5.8127]
[1746797750284,1.0717,172.14,172.02,3.8544]
[1746797750479,5.8118,172.09,172.05,5.8128]
[1746797750683,1.0717,172.14,172.02,3.8544]
[1746797751091,1.0717,172.14,172.05,5.813]
[1746797751393,1.0717,172.14,172.02,3.8544]
[1746797752085,5.8117,172.1,172.03,5.8136]
[1746797752290,1.0717,172.14,172.03,5.8136]
[1746797752782,1.0717,172.14,171.98,41.2327]
[1746797753287,5.8111,172.11,172.06,5.8125]
[1746797753600,1.0717,172.14,172.06,5.8125]
[1746797753789,1.0717,172.14,171.98,41.2327]
[1746797754290,5.8109,172.12,171.98,41.2327]
[1746797754491,1.0717,172.14,171.98,41.2327]
[1746797754791,5.8108,172.12,171.98,41.2327]
[1746797754984,5.8108,172.12,172.07,5.8122]
[1746797755185,1.0717,172.14,171.99,62.0]
[1746797755387,5.8113,172.11,171.99,62.0]
[1746797755690,1.0717,172.14,171.98,41.2327]
[1746797756090,1.0717,172.14,172.04,5.8132]
[1746797756286,5.8116,172.1,171.98,41.2327]
[1746797756494,39.38,172.16,172.09,5.8114]